bitfinex/quotes_ETHUSD_20251110
["timestamp","ask_amount","ask_price","bid_price","bid_amount"]
[1762806139260,4.42500488,3570.8,3570.7,0.002]
[1762806139421,4.06020488,3570.8,3570.7,0.4837]
[1762806139627,5.01231706,3570.8,3570.7,0.9377]
[1762806139824,1.259712,3570.8,3570.7,0.9377]
[1762806140020,4.06020488,3570.8,3570.7,0.9377]
[1762806140220,1.259712,3570.8,3570.7,0.9377]
[1762806140736,4.06020488,3570.8,3570.7,0.9377]
[1762806141251,1.259712,3570.8,3570.7,0.9377]
[1762806141432,1.259712,3570.8,3570.7,0.4837]
[1762806141620,1.259712,3570.8,3570.7,0.9377]
[1762806141621,4.4995738,3570.8,3570.7,0.9377]
[1762806141825,1.69908092,3570.8,3570.7,0.9377]
[1762806142194,4.06020488,3570.8,3570.7,0.9377]
[1762806144628,4.4995756,3570.8,3570.7,0.9377]
[1762806145667,3.2398636,3570.8,3570.7,0.9377]
[1762806145863,0.43937072,3570.8,3570.7,0.9377]
[1762806146094,3.2398636,3570.8,3570.7,0.9377]
[1762806147278,0.43937072,3570.8,3570.7,0.9377]
[1762806147771,2.80041805,3570.9,3570.7,0.9377]
[1762806147968,2.80033723,3571.0,3570.8,0.4901]
[1762806148160,4.06089121,3571.2,3571.1,0.662]
[1762806149083,4.74699145,3571.2,3571.1,0.662]
[1762806149401,4.74699145,3571.2,3571.1,0.4765]
[1762806151098,5.18633316,3571.2,3571.1,0.4765]
[1762806151873,1.259712,3571.1,3570.7,0.002]
[1762806152072,2.80049288,3570.8,3570.7,0.4921]
[1762806152602,2.80049288,3570.8,3570.7,0.9686]
[1762806153019,1.12644195,3571.2,3570.7,0.9686]
[1762806153230,0.44034171,3571.2,3571.1,0.662]
[1762806153542,1.70005371,3571.2,3571.1,1.1521]
[1762806153849,4.50023292,3571.2,3571.1,1.1521]
[1762806154414,4.50023292,3571.2,3571.1,0.4765]
[1762806154611,4.50023292,3571.2,3571.1,0.9666]
[1762806155028,4.50023292,3571.2,3571.1,0.4765]
[1762806155243,4.06089121,3571.2,3571.1,0.4765]
[1762806155745,1.260712,3571.2,3571.1,0.4765]
[1762806155925,4.06089121,3571.2,3571.1,0.4765]
[1762806156119,4.06089121,3571.2,3571.1,0.9666]
[1762806157747,0.001,3571.2,3571.1,0.9666]
[1762806158054,2.80117921,3571.2,3571.1,0.9666]
[1762806158801,1.260712,3571.2,3571.1,0.9666]
[1762806159139,1.260712,3571.2,3571.1,0.4765]
[1762806159140,4.06089121,3571.2,3571.1,0.4765]
[1762806159594,1.260712,3571.2,3571.1,0.9666]
[1762806159926,1.260712,3571.2,3571.1,1.1521]
[1762806160533,0.001,3571.2,3571.1,1.1521]
[1762806160718,0.001,3571.2,3570.7,0.002]
[1762806160719,2.80027453,3571.1,3570.7,0.002]
[1762806160929,2.80038133,3571.0,3570.8,0.4901]
[1762806161338,2.80038133,3571.0,3570.9,0.4765]
[1762806161728,2.80038133,3571.0,3570.9,0.9666]
[1762806163050,2.80049288,3570.8,3570.7,0.002]
[1762806163211,4.06380488,3570.8,3570.7,0.002]
[1762806163414,4.53700488,3570.8,3570.7,0.002]
[1762806163649,4.06380488,3570.8,3570.7,0.002]
[1762806163849,5.19856619,3570.8,3570.7,0.4785]
[1762806165031,4.06020488,3570.8,3570.7,0.4785]
[1762806165441,4.42410488,3570.8,3570.7,0.002]
[1762806165644,4.89620488,3570.8,3570.7,0.002]
[1762806166356,4.06020488,3570.8,3570.7,0.4785]
[1762806166658,1.259712,3570.8,3570.7,0.9686]
[1762806167035,4.06020488,3570.8,3570.7,0.9686]
[1762806167241,1.259712,3570.8,3570.7,0.9686]
[1762806167440,2.80036898,3571.0,3570.7,0.9686]
[1762806167633,2.80117921,3571.2,3571.1,0.4765]
[1762806167942,2.80117921,3571.2,3571.1,0.9666]
[1762806168151,2.80117921,3571.2,3571.1,1.1521]
[1762806168345,0.001,3571.2,3571.1,1.1521]
[1762806169057,0.001,3571.2,3571.1,1.54735921]
[1762806169257,0.001,3571.2,3571.1,4.34761683]
[1762806169459,0.001,3571.2,3571.1,1.54735921]
[1762806170059,0.001,3571.2,3571.1,1.54935921]
[1762806171128,0.001,3571.2,3571.1,3.95435762]
[1762806171366,0.001,3571.2,3571.1,1.1541]
[1762806171659,0.001,3571.2,3571.1,3.95435762]
[1762806174862,0.001,3571.2,3571.1,7.5276925]
[1762806175044,0.001,3571.2,3571.1,7.9331965]
[1762806175238,0.001,3571.6,3571.5,2.799944]
[1762806175438,0.001,3571.6,3571.5,3.292744]
[1762806175643,0.001,3571.6,3571.5,0.9885]
[1762806175841,0.001,3571.6,3571.5,3.788444]
[1762806176775,0.001,3571.6,3571.5,7.36177888]
[1762806176974,0.001,3571.6,3571.5,4.80462503]
[1762806177868,0.001,3572.0,3571.9,2.79963044]
[1762806178165,0.001,3572.0,3571.9,0.4928]
[1762806178376,0.001,3572.0,3571.9,0.9885]
[1762806180080,0.001,3572.0,3571.9,0.4928]
[1762806180287,2.80055207,3572.0,3571.9,0.4928]
[1762806180447,0.001,3572.0,3571.9,0.9885]
[1762806180647,2.79969138,3571.9,3571.5,0.4957]
[1762806180842,2.79973015,3571.8,3571.2,0.4957]
[1762806181041,2.79971372,3571.8,3571.3,0.4957]
[1762806181244,0.001,3572.0,3571.4,0.34833792]
[1762806181465,0.001,3572.0,3571.3,0.4957]
[1762806181664,2.80056906,3572.0,3571.3,0.4957]
[1762806181983,2.80055728,3572.0,3571.3,0.4957]
[1762806182681,0.001,3572.0,3571.3,0.4957]
[1762806182885,2.79963533,3571.9,3571.3,3.29578841]
[1762806183081,2.79963533,3571.9,3571.3,3.85591226]
[1762806183249,2.79963533,3571.9,3571.4,0.4957]
[1762806183450,2.80060858,3572.0,3571.4,0.4957]
[1762806183676,2.79967942,3571.9,3571.4,0.4957]
[1762806183969,2.80057939,3572.0,3571.4,0.4957]
[1762806184272,0.001,3572.0,3571.4,0.4957]
[1762806185375,2.79983429,3571.7,3571.1,0.6832]
[1762806185577,2.79972948,3571.8,3571.2,0.3483478]
[1762806185886,2.79972948,3571.8,3571.2,3.64422059]
[1762806186408,2.79972948,3571.8,3571.2,0.8440478]
[1762806186409,2.79970883,3571.8,3571.2,0.8440478]
[1762806186707,2.79972466,3571.8,3571.2,2.80017867]
[1762806186914,2.79978929,3571.7,3571.3,0.4957]
[1762806187329,2.80007115,3571.4,3571.1,0.1875]
[1762806187490,0.4897,3571.7,3571.1,0.1875]
[1762806187811,2.79995413,3571.5,3571.3,0.4928]
[1762806188012,3.25947921,3571.2,3571.1,0.002]
[1762806188311,3.1733124,3571.6,3571.1,0.002]
[1762806188312,0.001,3572.0,3571.8,0.4928]
[1762806188684,2.80060586,3572.0,3571.8,0.4928]
[1762806189009,2.79963044,3571.9,3571.8,0.4928]
[1762806189222,0.001,3572.0,3571.8,0.4928]
[1762806189380,0.001,3572.0,3571.9,0.4928]
[1762806189790,0.001,3572.0,3571.9,0.9885]
[1762806190607,0.001,3572.0,3571.9,1.36732631]
[1762806191013,0.001,3572.0,3571.9,0.9885]
[1762806191391,0.4603,3572.0,3571.6,0.4957]
[1762806193320,0.001,3572.0,3571.9,0.4928]
[1762806193923,0.001,3572.0,3571.9,0.9885]
[1762806194084,0.001,3572.0,3571.9,0.4928]
[1762806194483,0.001,3572.0,3571.5,0.4957]
[1762806194835,0.001,3572.0,3571.6,0.32956905]
[1762806195190,0.001,3572.0,3571.6,0.82526905]
[1762806195486,0.001,3572.0,3571.1,0.6818]
[1762806195686,2.7998656,3571.6,3571.1,0.002]
[1762806195925,2.799944,3571.5,3571.1,0.002]
[1762806196124,0.1902,3571.9,3571.1,0.6818]
[1762806196325,2.79983728,3571.7,3571.4,0.4928]
[1762806196494,0.1902,3571.9,3571.4,0.4928]
[1762806196690,0.1902,3571.9,3571.6,0.4928]
[1762806196691,2.79978721,3571.7,3571.6,0.4928]
[1762806197349,2.79991674,3571.6,3571.1,0.1861]
[1762806197627,0.3433,3571.2,3571.1,0.002]
[1762806197920,2.8000224,3571.4,3571.1,0.002]
[1762806198418,2.9899297,3571.8,3571.3,0.4928]
[1762806198659,1.939612,3571.8,3571.3,0.4928]
[1762806198784,0.1902,3571.8,3571.1,0.1861]
[1762806198990,2.80014717,3571.3,3571.1,0.002]
[1762806199293,0.4593,3571.4,3571.1,0.002]
[1762806199294,3.25936948,3571.4,3571.1,0.002]
[1762806199624,2.80011872,3571.3,3571.1,0.002]
[1762806200423,3.28964503,3571.5,3571.1,0.002]
[1762806200424,2.80004651,3571.4,3571.1,0.002]
[1762806200923,2.8000224,3571.4,3571.1,0.002]
[1762806201311,3.57536744,3572.0,3571.1,0.002]
[1762806201312,0.8250912,3571.8,3571.3,0.4928]
[1762806201623,2.79978738,3571.7,3571.4,0.4928]
[1762806201788,2.79980861,3571.7,3571.4,0.4928]
[1762806202306,4.0136483,3571.8,3571.6,0.4928]
[1762806202307,3.23899986,3571.8,3571.6,0.4928]
[1762806202535,3.23899986,3571.8,3571.7,0.4928]
[1762806202536,0.43928086,3571.8,3571.7,0.4928]
[1762806203547,3.23998969,3571.8,3571.7,0.4928]
[1762806203959,0.44028086,3571.8,3571.7,0.4928]
[1762806204165,3.23998969,3571.8,3571.7,0.4928]
[1762806204470,0.44028086,3571.8,3571.7,0.4928]
[1762806206870,3.23998969,3571.8,3571.7,0.4928]
[1762806207936,0.44028086,3571.8,3571.7,0.4928]
[1762806209046,0.001,3571.8,3571.7,0.4928]
[1762806210174,0.001,3571.8,3571.3,0.4538]
[1762806210360,0.001,3571.8,3571.4,3.25001219]
[1762806210554,0.001,3571.8,3571.7,0.4702]
[1762806211129,3.13941567,3571.8,3571.4,0.44999]
[1762806211342,0.3397,3571.8,3571.4,0.44999]
[1762806211543,0.001,3571.8,3571.7,3.26998721]
[1762806211741,0.001,3571.8,3571.7,4.71410828]
[1762806212038,0.001,3571.8,3571.7,4.42395216]
[1762806213445,0.001,3571.8,3571.7,2.36798826]
[1762806213649,0.001,3571.8,3571.7,1.62416495]
[1762806213883,0.001,3571.8,3571.7,3.72378721]
[1762806214089,0.001,3571.8,3571.7,0.4702]
[1762806214283,0.3549,3571.8,3571.4,0.74382331]
[1762806214463,0.3549,3571.8,3571.3,2.80002935]
[1762806215073,0.3549,3571.8,3571.4,3.25382049]
[1762806215435,0.3549,3571.8,3571.7,0.4702]
[1762806215436,0.001,3571.8,3571.7,0.4702]
[1762806216782,2.79978721,3571.7,3571.2,0.74382331]
[1762806216953,2.79978721,3571.7,3571.1,2.98633941]
[1762806216954,0.0049,3571.6,3571.1,2.98633941]
[1762806217337,0.0049,3571.6,3571.1,3.44013941]
[1762806217762,0.0049,3571.6,3571.2,3.25391818]
[1762806217957,0.4939,3571.8,3571.2,3.25391818]
[1762806217958,0.001,3571.8,3571.5,0.4702]
[1762806218188,0.001,3571.8,3571.7,0.4702]
[1762806219160,0.3549,3571.8,3571.2,1.08441404]
[1762806219494,0.001,3571.8,3571.7,0.4702]
[1762806220600,0.001,3571.8,3571.3,0.86745759]
[1762806220601,0.5374,3571.8,3571.3,0.86745759]
[1762806220748,0.0049,3571.6,3571.1,0.1861]
[1762806220943,0.0049,3571.6,3571.1,2.98634333]
[1762806221180,0.0059,3571.6,3571.1,3.44014333]
[1762806221402,0.001,3571.6,3571.3,2.80007059]
[1762806221714,0.001,3571.6,3571.5,0.4702]
[1762806222709,0.001,3571.6,3571.5,0.924]
[1762806223775,0.001,3571.6,3571.5,3.723944]
[1762806223975,0.001,3571.6,3571.5,3.75194344]
[1762806224216,0.001,3571.6,3571.5,3.723944]
[1762806224412,0.001,3571.6,3571.5,5.30260677]
[1762806225318,0.001,3571.6,3571.5,6.04643008]
[1762806226515,0.001,3571.6,3571.5,5.30260677]
[1762806226707,0.001,3571.6,3571.5,6.04643008]
[1762806227307,0.001,3571.6,3571.5,5.30260677]
[1762806229387,0.001,3571.6,3571.5,6.04643008]
[1762806230823,0.001,3571.6,3571.5,9.90643008]
[1762806231208,0.001,3571.6,3571.5,9.90815571]
[1762806233250,0.001,3571.6,3571.5,9.16260677]
[1762806233425,0.001,3571.6,3571.5,10.54697802]
[1762806235138,0.001,3571.6,3571.5,14.02856826]
[1762806237638,0.001,3571.6,3571.5,14.03056826]
[1762806237928,0.001,3571.6,3571.5,13.05170101]
[1762806242652,0.6683,3571.6,3571.5,4.60792609]
[1762806242858,3.4681656,3571.6,3571.5,0.002]
[1762806243212,0.001,3571.6,3571.5,0.4594]
[1762806243418,0.001,3571.6,3571.5,0.9407]
[1762806243666,0.001,3571.6,3571.5,0.4594]
[1762806243820,0.001,3571.6,3571.5,0.002]
[1762806243821,0.3514,3571.6,3571.5,0.002]
[1762806244217,0.001,3571.6,3571.5,0.4594]
[1762806244475,0.001,3571.6,3571.5,3.259344]
[1762806244625,0.001,3571.6,3571.5,4.76933323]
[1762806245518,0.001,3571.6,3571.5,0.002]
[1762806245519,0.1703,3571.6,3571.5,0.002]
[1762806245735,0.6679,3571.6,3571.5,2.801944]
[1762806245917,0.1703,3571.6,3571.5,0.002]
[1762806246130,0.1703,3571.6,3571.5,2.801944]
[1762806246767,0.001,3571.6,3571.5,3.259344]
[1762806247062,0.001,3571.6,3571.5,5.59139471]
[1762806247216,0.001,3571.6,3571.5,4.81746918]
[1762806250374,0.001,3571.6,3571.5,8.29905942]
[1762806252090,0.001,3571.6,3571.5,9.69892162]
[1762806252241,0.001,3571.6,3571.5,10.17201715]
[1762806252666,0.001,3571.6,3571.5,24.67201715]
[1762806253492,0.001,3571.6,3571.5,24.61833715]
[1762806254283,0.001,3571.6,3571.5,24.41059542]
[1762806254479,0.001,3571.6,3571.5,24.41259542]
[1762806254805,0.001,3571.6,3571.5,24.52477016]
[1762806254987,0.001,3571.6,3571.5,25.46058388]
[1762806257000,0.001,3571.6,3571.5,27.41718886]
[1762806257179,0.001,3571.6,3571.5,25.46058388]
[1762806259596,0.001,3571.6,3571.5,27.41718886]
[1762806260107,0.001,3571.6,3571.5,31.27718886]
[1762806261298,1e-08,3572.1,3572.0,3.25695207]
[1762806261516,1e-08,3572.1,3572.0,3.8626189]
[1762806261816,1e-08,3572.1,3572.0,4.3439189]
[1762806262619,1e-08,3572.1,3572.0,9.75107111]
[1762806262827,1e-08,3572.1,3572.0,9.72307559]
[1762806263505,1e-08,3572.1,3572.0,24.22307559]
[1762806264320,1e-08,3572.6,3572.0,28.08307559]
[1762806264520,1e-08,3572.6,3572.5,11.02195524]
[1762806264737,1e-08,3572.6,3572.5,11.50325524]
[1762806265032,1e-08,3572.6,3572.5,4.92177625]
[1762806265194,1e-08,3572.6,3572.5,6.52514111]
[1762806265608,1e-08,3572.6,3572.5,6.06774111]
[1762806265609,0.33730001,3572.6,3572.5,6.06774111]
[1762806265796,0.33730001,3572.6,3572.5,5.6983546]
[1762806266505,0.33730001,3572.6,3572.5,6.69251232]
[1762806266705,0.83320001,3572.6,3572.5,5.2928506]
[1762806266928,0.33730001,3572.6,3572.5,5.2928506]
[1762806267423,1e-08,3572.6,3572.5,5.2928506]
[1762806267627,1e-08,3572.6,3572.5,5.7820506]
[1762806268328,1e-08,3572.6,3572.5,5.2928506]
[1762806269225,1e-08,3572.6,3572.5,5.7820506]
[1762806269630,1e-08,3572.6,3572.5,9.6420506]
[1762806273208,1e-08,3572.6,3572.5,10.63620832]
[1762806273404,1e-08,3572.6,3572.5,11.13100832]
[1762806273734,1e-08,3572.6,3572.5,10.63620832]
[1762806274436,0.49780001,3572.6,3572.5,10.14700832]
[1762806275005,0.83480001,3572.6,3572.5,9.1528506]
[1762806275236,0.83480001,3572.6,3572.5,10.14700832]
[1762806275707,0.49780001,3572.6,3572.5,10.14700832]
[1762806276733,1e-08,3572.6,3572.5,10.60670832]
[1762806276942,1e-08,3572.6,3572.5,14.08663056]
[1762806277142,0.85020001,3572.6,3572.5,10.14700832]
[1762806277347,0.85020001,3572.6,3572.5,8.91302997]
[1762806279147,0.85020001,3572.6,3572.5,7.91887225]
[1762806280082,1e-08,3572.6,3572.5,8.37857225]
[1762806281648,0.39780001,3572.6,3572.5,7.91887225]
[1762806282043,0.84930001,3572.6,3572.5,7.91887225]
[1762806283136,0.84930001,3572.6,3572.5,9.41008501]
[1762806284369,0.39780001,3572.6,3572.5,10.11944276]
[1762806285589,0.84930001,3572.6,3572.5,6.65916025]
[1762806285943,1e-08,3572.6,3572.5,10.27528901]
[1762806286176,1e-08,3572.6,3572.5,9.24137625]
[1762806286336,1e-08,3572.6,3572.5,9.35352803]
[1762806286534,1e-08,3572.6,3572.5,11.54779777]
[1762806287168,0.001,3572.8,3572.7,3.20450755]
[1762806287376,0.001,3572.8,3572.7,7.14412979]
[1762806288168,0.001,3572.8,3572.7,8.64131419]
[1762806289986,0.001,3572.8,3572.7,11.46142978]
[1762806290139,0.001,3572.8,3572.7,14.20826748]
[1762806290340,0.001,3572.8,3572.7,15.46797948]
[1762806290942,0.001,3572.8,3572.7,17.42458446]
[1762806291773,0.3988,3572.8,3572.7,11.07105724]
[1762806292576,0.001,3572.8,3572.7,11.53075724]
[1762806293087,0.001,3572.8,3572.7,11.98805724]
[1762806295255,0.001,3572.8,3572.7,26.48805724]
[1762806296280,0.001,3572.8,3572.7,26.09505724]
[1762806296993,0.001,3572.8,3572.7,29.66352599]
[1762806298130,0.001,3572.8,3572.7,15.16352599]
[1762806299198,0.001,3572.8,3572.7,14.70622599]
[1762806299513,0.3754,3572.8,3572.7,14.24652599]
[1762806299873,0.85,3572.8,3572.7,14.24652599]
[1762806300345,0.85,3572.8,3572.7,5.36052882]
[1762806300507,0.85,3572.8,3572.5,1.00260612]
[1762806300710,0.4883,3572.6,3572.5,2.8011285]
[1762806301138,0.8473,3572.6,3572.5,2.8011285]
[1762806301315,0.8473,3572.6,3572.5,0.002]
[1762806302197,0.8473,3572.6,3572.5,0.75275367]
[1762806303043,0.8473,3572.6,3572.5,2.80116025]
[1762806303247,0.4883,3572.6,3572.5,2.80116025]
[1762806303540,0.8473,3572.6,3572.5,2.80116025]
[1762806304831,0.001,3572.8,3572.7,2.79900355]
[1762806304994,0.001,3572.8,3572.7,3.80053124]
[1762806305196,0.488,3572.8,3572.7,3.80053124]
[1762806305409,0.488,3572.8,3572.7,2.79900355]
[1762806305652,0.488,3572.8,3572.5,4.30168908]
[1762806305653,0.8483,3572.8,3572.6,1.0014531]
[1762806305801,0.8483,3572.8,3572.5,1.0034531]
[1762806305802,0.4756,3572.7,3572.5,1.0034531]
[1762806306001,0.001,3572.8,3572.5,1.0034531]
[1762806306002,0.3715,3572.6,3572.5,3.80261335]
[1762806306227,0.3715,3572.6,3572.5,2.80116025]
[1762806306446,0.8461,3572.6,3572.5,3.80271771]
[1762806307316,0.8461,3572.6,3572.5,2.80116025]
[1762806307622,0.8461,3572.6,3572.5,3.80231912]
[1762806308033,0.3715,3572.6,3572.5,3.80231912]
[1762806309412,0.8461,3572.6,3572.5,3.80231912]
[1762806309966,0.8461,3572.6,3572.5,6.66116024]
[1762806310458,0.8461,3572.6,3572.5,3.55181194]
[1762806311444,0.8461,3572.6,3572.5,2.80116025]
[1762806311844,0.8461,3572.6,3572.5,3.55181194]
[1762806312712,0.3715,3572.6,3572.5,3.55181194]
[1762806312913,0.3715,3572.6,3572.5,4.28703945]
[1762806313255,0.3715,3572.6,3572.5,3.53638776]
[1762806313411,0.001,3572.8,3572.7,2.79900355]
[1762806314027,0.001,3572.8,3572.7,6.88096233]
[1762806314225,0.001,3572.8,3572.7,6.8529723]
[1762806314426,0.001,3572.8,3572.7,8.08925119]
[1762806314647,0.001,3572.8,3572.7,9.0894872]
[1762806314944,0.4893,3572.8,3572.7,8.6039872]
[1762806315250,0.001,3572.8,3572.7,7.2584763]
[1762806315458,0.001,3572.8,3572.7,7.7313763]
[1762806316157,0.001,3572.8,3572.7,9.23190513]
[1762806316367,0.001,3572.8,3572.7,13.09190512]
[1762806316567,0.001,3572.8,3572.7,15.38573441]
[1762806316740,0.001,3572.8,3572.7,16.64544641]
[1762806316922,0.001,3572.8,3572.7,15.14491758]
[1762806317465,1e-08,3572.9,3572.8,5.42254121]
[1762806317665,1e-08,3572.9,3572.8,10.78232889]
[1762806317883,1e-08,3572.9,3572.8,11.59175792]
[1762806318439,1e-08,3572.9,3572.8,15.16022667]
[1762806319350,1e-08,3572.9,3572.8,11.59175792]
[1762806319538,0.32810001,3572.9,3572.8,11.72718091]
[1762806319940,0.32810001,3572.9,3572.8,12.13268491]
[1762806320440,0.001,3573.4,3572.8,12.13268491]
[1762806320441,1e-08,3573.4,3573.3,5.09344956]
[1762806320664,1e-08,3573.4,3573.3,8.99496224]
[1762806320971,1e-08,3573.4,3573.3,12.9948183]
[1762806321187,1e-08,3573.4,3573.3,27.4948183]
[1762806321340,1e-08,3573.4,3573.3,30.5467146]
[1762806321686,1e-08,3573.4,3573.3,30.241656]
[1762806321982,1e-08,3573.4,3573.3,30.8135974]
[1762806323251,1e-08,3573.4,3573.3,31.13682266]
[1762806323452,0.001,3573.6,3573.5,4.46359294]
[1762806323703,0.001,3573.6,3573.5,7.17603938]
[1762806323998,0.001,3573.6,3573.5,7.97216464]
[1762806324151,0.001,3573.6,3573.5,8.12453938]
[1762806324549,0.001,3573.6,3573.5,22.62453938]
[1762806327887,0.001,3573.6,3573.5,8.12453938]
[1762806328296,0.001,3573.6,3573.5,22.62453938]
[1762806329594,0.001,3573.6,3573.5,27.97686319]
[1762806331296,0.4714,3573.6,3573.5,11.02613937]
[1762806331664,0.4714,3573.6,3573.5,12.50489279]
[1762806331665,0.001,3573.6,3573.5,12.50489279]
[1762806332166,0.001,3573.6,3573.5,11.50963937]
[1762806334994,0.001,3573.6,3573.5,11.96433937]
[1762806335191,0.001,3573.6,3573.5,26.46433937]
[1762806336068,0.001,3573.6,3573.5,26.00963937]
[1762806338073,0.3543,3573.6,3573.5,25.52613937]
[1762806338881,0.3543,3573.6,3573.5,11.02613937]
[1762806339373,0.001,3573.6,3573.5,11.02613937]
[1762806339786,0.001,3573.6,3573.5,11.50963937]
[1762806339987,0.001,3573.6,3573.5,11.02613937]
[1762806341216,0.001,3573.6,3573.5,12.51846319]
[1762806341620,0.001,3573.6,3573.5,13.00196319]
[1762806342917,0.1807,3574.7,3574.1,2.79790716]
[1762806343126,0.01,3574.9,3574.1,9.61744294]
[1762806343288,0.001,3574.4,3574.1,9.58946387]
[1762806343635,0.8387,3574.2,3574.1,10.31899859]
[1762806343927,0.8387,3574.2,3574.1,9.99085787]
[1762806345197,0.8387,3574.2,3574.1,8.99172315]
[1762806345423,0.8387,3574.2,3574.1,8.58621915]
[1762806346638,0.8387,3574.2,3574.1,12.1546879]
[1762806346830,0.001,3574.2,3574.1,12.5601919]
[1762806347030,0.4714,3574.2,3574.1,14.29131375]
[1762806347230,0.4714,3574.2,3574.1,15.78964769]
[1762806349099,0.001,3574.2,3574.1,14.29131375]
[1762806349432,0.001,3574.2,3574.1,14.77481375]
[1762806349632,0.001,3574.2,3574.1,10.91481376]
[1762806350734,0.3543,3574.2,3574.1,10.43131376]
[1762806353556,0.001,3574.2,3574.1,10.43131376]
[1762806353857,0.3556,3574.2,3574.1,10.43131376]
[1762806354457,0.3556,3574.2,3574.1,14.29131375]
[1762806355426,0.3556,3574.2,3574.1,12.5601919]
[1762806355737,0.828,3574.2,3574.1,12.5601919]
[1762806356053,0.3556,3574.2,3574.1,12.5601919]
[1762806357359,0.001,3574.2,3574.1,13.0243919]
[1762806357657,0.4747,3574.2,3574.1,8.99172315]
[1762806357855,0.8399,3574.2,3574.1,8.99172315]
[1762806358060,0.4747,3574.2,3574.1,8.99172315]
[1762806359434,0.001,3574.2,3574.1,8.99172315]
[1762806359639,0.4736,3574.2,3574.1,8.99172315]
[1762806360769,0.8399,3574.2,3574.1,8.99172315]
[1762806361667,0.4736,3574.2,3574.1,8.99172315]
[1762806361829,0.4736,3574.2,3574.1,11.14958044]
[1762806363334,0.001,3574.2,3574.1,11.61378044]
[1762806363670,0.001,3574.2,3574.1,11.14958044]
[1762806364278,0.3675,3574.2,3574.1,11.14958044]
[1762806364448,0.3675,3574.2,3574.1,25.64958044]
[1762806364968,0.3675,3574.2,3574.1,11.14958044]
[1762806365144,0.001,3574.2,3574.1,11.14958044]
[1762806365461,0.001,3574.2,3574.1,12.09708044]
[1762806366346,0.001,3574.4,3574.3,10.53911164]
[1762806366547,0.001,3574.4,3574.3,13.75014934]
[1762806366870,0.001,3574.4,3574.3,14.23344934]
[1762806367342,0.001,3574.4,3574.3,13.75014934]
[1762806367544,0.3675,3574.4,3574.3,9.80909229]
[1762806367756,0.8388,3574.4,3574.3,11.31142615]
[1762806368584,0.8388,3574.4,3574.3,12.15022615]
[1762806369292,0.8388,3574.4,3574.3,11.74472215]
[1762806369458,0.8388,3574.4,3574.3,8.99788445]
[1762806370452,0.8388,3574.4,3574.3,8.15908445]
[1762806370794,0.8388,3574.4,3574.3,6.65675059]
[1762806371179,0.8388,3574.4,3574.3,8.15908445]
[1762806371894,0.8388,3574.4,3574.3,6.65675059]
[1762806373080,0.8388,3574.4,3574.2,3.85899999]
[1762806373285,0.001,3574.4,3574.3,2.7977506]
[1762806373488,0.001,3574.4,3574.3,3.80202372]
[1762806373799,0.8399,3574.4,3574.3,3.80202372]
[1762806374204,0.8399,3574.4,3574.3,2.7977506]
[1762806374702,0.8399,3574.4,3574.3,3.80253273]
[1762806375809,0.8399,3574.4,3574.3,2.7977506]
[1762806376416,0.4747,3574.4,3574.3,2.7977506]
[1762806376783,0.001,3574.4,3574.3,4.26373538]
[1762806376987,0.001,3574.4,3574.3,5.76606924]
[1762806377180,0.4736,3574.4,3574.3,5.76606924]
[1762806377802,0.4736,3574.4,3574.3,6.24076924]
[1762806379298,0.001,3574.4,3574.3,4.73843538]
[1762806380129,0.001,3574.4,3574.3,9.57291287]
[1762806380302,0.001,3574.4,3574.3,9.54493537]
[1762806380624,0.001,3574.4,3574.3,9.06163537]
[1762806381124,0.001,3574.4,3574.3,9.54493537]
[1762806384444,0.3675,3574.4,3574.3,8.59743537]
[1762806384663,0.8388,3574.4,3574.3,7.53695459]
[1762806386449,0.8388,3574.4,3574.3,4.6269546]
[1762806386450,0.001,3574.4,3574.3,4.6269546]
[1762806386610,0.001,3574.4,3574.3,4.1733546]
[1762806386810,0.001,3574.4,3574.3,4.6269546]
[1762806387030,0.001,3574.4,3574.3,6.29908506]
[1762806387437,0.001,3574.4,3574.3,9.51540204]
[1762806387631,0.001,3574.4,3574.3,11.41779705]
[1762806388241,0.001,3574.8,3574.3,11.41779705]
[1762806388242,0.001,3574.8,3574.7,4.46265354]
[1762806388444,0.001,3574.8,3574.7,8.43491059]
[1762806388757,0.001,3574.8,3574.7,12.26970011]
[1762806388970,0.01,3574.9,3574.8,5.41157529]
[1762806388971,1e-08,3574.9,3574.8,5.41157529]
[1762806389323,1e-08,3574.9,3574.8,9.27057528]
[1762806389543,1e-08,3574.9,3574.8,11.28201714]
[1762806390178,0.01,3575.9,3575.1,4.46234055]
[1762806390340,0.01,3575.9,3575.1,14.14241037]
[1762806390571,0.01,3575.9,3575.1,16.60531225]
[1762806391035,0.01,3575.9,3575.1,17.8076604]
[1762806391250,0.01,3575.9,3575.1,15.79835852]
[1762806391453,0.01,3575.9,3575.1,17.80250192]
[1762806392036,0.01,3575.9,3575.1,15.79835852]
[1762806392671,0.01,3575.9,3575.1,15.14895852]
[1762806392839,0.475,3575.7,3575.1,15.14895852]
[1762806393023,0.3491,3575.2,3575.1,14.65355852]
[1762806393368,0.8228,3575.2,3575.1,10.63005332]
[1762806393569,0.8228,3575.2,3575.1,12.13411009]
[1762806393724,0.8228,3575.2,3575.1,10.63005332]
[1762806393921,0.8228,3575.2,3575.1,7.71732854]
[1762806394238,0.8228,3575.2,3575.1,8.72030793]
[1762806394441,0.8228,3575.2,3575.1,9.98001993]
[1762806395630,0.3491,3575.2,3575.1,8.5948976]
[1762806395969,0.3491,3575.2,3575.1,12.05420693]
[1762806395970,0.4625,3575.2,3575.1,12.05420693]
[1762806396472,0.4625,3575.2,3575.1,10.55015016]
[1762806398334,0.824,3575.2,3575.1,3.45282455]
[1762806399341,0.001,3575.2,3575.1,10.54716874]
[1762806399566,0.001,3575.2,3575.1,11.04795437]